Cogmind - Beta 16 @@@ ROGUE MODE // 2025.12.13 @ 15:16:40 Player: Cracklepappy Result: Destroyed by TB-GDZ(R) with Subdweller Shrapnel Launcher Performance ------------- Evolutions (0) 0 Regions Visited (3) 600 Robots Destroyed (55) 275 Value Destroyed (1060) 1060 Prototype IDs (2) 40 Alien Tech Used (0) 0 Bonus (-45) -45 TOTAL SCORE: 1930 Bonus ------- Friendly Fire -45 Cogmind --------- Core Integrity 0/250 Matter 197/300 Energy 44/100 System Corruption 0% Temperature Cool (0) Movement Core (100) Ox1 Location -10/Subcaves Parts ------- > --- POWER (1) -------- (None) > --- PROPULSION (2) --- Flight Unit > --- UTILITY (2) ------ Small Storage Unit Weight Redist. System > --- WEAPON (2) ------- Light Cannon Rocket Launcher > --- INVENTORY (8) ---- Flight Unit Cobbler Unit Light Cannon Light Cannon Multitool Ripper Peak State ------------ > --- POWER ------------ Light Ion Engine > --- PROPULSION ------- Flight Unit Flight Unit > --- UTILITY ---------- Small Storage Unit Weight Redist. System > --- WEAPON ----------- Light Cannon Ripper > --- INVENTORY -------- Flight Unit Flight Unit Light Cannon Light Cannon Light Cannon Rocket Launcher Subdweller Shrapnel Launcher Datajack [Rating: 12] Favorites ----------- Power Light Ion Engine Engine Light Ion Engine Propulsion Flight Unit Treads Light Treads Flight Unit Flight Unit Utility Weight Redist. System Device Weight Redist. System Storage Small Storage Unit Protection Light Armor Plating Weapon Light Cannon Energy Gun Medium Laser Ballistic Gun Light Assault Rifle Ballistic Cannon Light Cannon Launcher Grenade Launcher Special Weapon Mining Laser Slashing Weapon Ripper Special Melee Weapon Datajack Build | -11 -10 -10 -10 ------- Run | Yrd Mat Min Sub Slots Evolved . | . . . . Power . | . . . . Propulsion . | . . . . Utility . | . . . . Weapon . | . . . . Parts Attached 28 | 6 15 4 3 Power 6 | 1 2 3 . Engine 6 | 1 2 3 . Core . | . . . . Reactor . | . . . . Propulsion 6 | 2 3 . 1 Treads 2 | 2 . . . Leg . | . . . . Wheel . | . . . . Hover . | . . . . Flight 4 | . 3 . 1 Utility 5 | 2 3 . . Device 3 | 2 1 . . Storage 1 | . 1 . . Processor . | . . . . Hackware . | . . . . Protection 1 | . 1 . . Artifact . | . . . . Weapon 11 | 1 7 1 2 Energy Gun 1 | . 1 . . Energy Cannon . | . . . . Ballistic Gun 2 | 1 1 . . Ballistic Cannon 3 | . 3 . . Launcher 2 | . 1 1 . Special Weapon 1 | . 1 . . Impact Weapon . | . . . . Slashing Weapon 1 | . . . 1 Piercing Weapon . | . . . . Special Melee Weapon 1 | . . . 1 Unidentified Prototypes . | . . . . Parts Lost 3 | . . . 3 Power 1 | . . . 1 Propulsion 1 | . . . 1 Utility . | . . . . Weapon 1 | . . . 1 Highest Loss Streak 2 | . . . 2 To Critical Strikes . | . . . . Average Backups 6 | 1 5 8 7 Power . | . . . . Propulsion 1 | . . 2 1 Utility . | . . . . Weapon 4 | 1 3 5 4 Tool/Special . | . . . . Unused Backups 11 | . 3 2 6 Power . | . . . . Propulsion 2 | . . 1 1 Utility 2 | . 1 . 1 Weapon 6 | . 2 1 3 Tool/Special 1 | . . . 1 Average Slot Usage (%) 95 | . 97 100 90 Engine 11 | . 13 14 5 Flight 27 | . 26 28 27 Device 15 | . 18 14 14 Storage 8 | . 1 14 14 Protection 3 | . 8 . . Ballistic Gun 2 | . 7 . . Ballistic Cannon 23 | . 17 27 27 Peak Build Rating 12 | 8 10 9 12 Average Rating 8 | 4 8 8 8 On Entrance 5 | . 7 8 8 Avg Prop Armor Cover (%) 20 | 32 31 . 7 Naked Turns . | . . . . Heaviest Build 15 | 6 14 15 14 Greatest Support 20 | 20 14 14 14 Greatest Overweight (x) 1 | 1 1 1 1 Average Overweight (x) . | . . . . Largest Inventory Capacity 8 | 5 8 8 8 Average Capacity 6 | 5 5 8 8 Most Carried 8 | 5 8 8 8 Average Carried 6 | 1 5 8 7 Final Capacity 8 | 5 8 8 8 Final Carried 8 | 5 8 8 7 Class Distribution -------------------- 61% | Scavenger-Mutant 38% | Mutant Dominant Class ---------------- Scavenger-Mutant | -10/Materials Scavenger-Mutant | -10/Mines Mutant | -10/Subcaves Resources | -11 -10 -10 -10 ----------- Run | Yrd Mat Min Sub Matter Collected 1596 | 297 544 438 317 Remotely . | . . . . Salvage Created 1406 | 124 628 466 188 Parts 102 | 12 46 33 11 Haulers Intercepted 2 | . 2 . . Recyclers Shooed 2 | . 1 1 . Parts Field Recycled . | . . . . Retrieved Matter . | . . . . Parts Self-Destructed 5 | . . . 5 Prevented . | . . . . Parts Restored . | . . . . Kills | -11 -10 -10 -10 ------- Run | Yrd Mat Min Sub Combat Hostiles Destroyed 36 | . 17 12 7 Guns 1 | . 1 . . Cannons 16 | . 5 7 4 AOE 19 | . 11 5 3 Classes Destroyed 10 | 2 4 1 3 Worker 4 | . 2 2 . Builder 1 | . . 1 . Tunneler 6 | 2 1 3 . Hauler 2 | . 2 . . Recycler 6 | 1 2 3 . Swarmer 14 | . 8 6 . Grunt 15 | . 9 6 . Artisan 1 | . . . 1 Cobbler 1 | . . . 1 Subdweller 7 | . . . 7 Best Kill Streak 8 | 3 8 6 2 Combat Bots Only 6 | . 6 4 2 Max Kills in Single Turn 4 | 1 4 1 2 Gunslinging . | . . . . Exploded 3 | . 3 1 2 Melee . | . . . . Uniques/NPCs Destroyed . | . . . . Combat | -11 -10 -10 -10 -------- Run | Yrd Mat Min Sub Hostile Shots Fired 79 | . 25 32 22 Missed 37 | . 12 17 8 Hits 42 | . 13 15 14 Projectile 42 | . 13 15 14 AOE 5 | . . . 5 Critical Strikes 1 | . 1 . . Damage Taken 828 | . 118 173 537 Core 265 | . 10 35 220 Absorbed by Shields . | . . . . Regen/Repaired (Parts) 22 | . 22 . . Core Remaining (%) 100 | 100 . . . Volleys Fired 178 | 37 61 51 29 Largest 2 | 1 2 2 2 Hottest 100 | 20 100 100 100 Shots Fired 266 | 37 99 88 42 Gun 85 | 37 48 . . Cannon 136 | . 34 74 28 Launcher 29 | . 9 7 13 Special 16 | . 8 7 1 Kinetic 221 | 37 82 74 28 Thermal 16 | . 8 7 1 Explosive 29 | . 9 7 13 Electromagnetic . | . . . . Robot Hit Streak 10 | 6 9 10 10 Robot Miss Streak 8 | 4 8 6 2 Penetration Max . | . . . . Secondary Targets . | . . . . Shots Hit Robots 114 | 20 38 32 24 Core Hits 87 | 6 37 27 17 Critical Kills . | . . . . Critical Parts Destroyed . | . . . . Critical Strikes 3 | . 1 1 1 Blast 3 | . 1 1 1 Melee Attacks 3 | . . . 3 Impact . | . . . . Slashing 3 | . . . 3 Piercing . | . . . . Sneak Attacks 2 | . . . 2 Combat Hostiles . | . . . . Follow-up Attacks . | . . . . Damage Inflicted 3335 | 188 1071 845 1231 Guns 355 | 188 167 . . Cannons 1215 | . 331 561 323 Explosions 1592 | . 573 284 735 Melee 173 | . . . 173 Ramming . | . . . . Kinetic 1570 | 188 498 561 323 Thermal . | . . . . Explosive 1592 | . 573 284 735 Electromagnetic . | . . . . Impact . | . . . . Slashing 173 | . . . 173 Piercing . | . . . . Highest Corruption . | . . . . Average Corruption . | . . . . Corruption Purged . | . . . . Corruption Blocked . | . . . . Overload Shots . | . . . . Overflow Damage 62 | . 9 5 48 Projectiles 14 | . 9 5 . Explosions . | . . . . Melee 48 | . . . 48 Knockbacks 8 | . 2 4 2 Impact . | . . . . Kinetic 8 | . 2 4 2 Secondary . | . . . . Self-Inflicted Damage 28 | . . 28 . Shots 1 | . . 1 . Rammed . | . . . . Targets Rammed . | . . . . Kicked . | . . . . Crushed . | . . . . Highest Temperature 113 | . 113 98 . Average Temperature 20 | . 23 17 . Received Heat Transfer 102 | . 36 33 33 Siege Activations . | . . . . Martial Activations . | . . . . Shielding Activations . | . . . . Robots Disrupted . | . . . . Combat Hostiles . | . . . . Robots Corrupted . | . . . . Combat Hostiles . | . . . . Parts Fried . | . . . . Impact Corruptions . | . . . . Robots Melted . | . . . . Combat Hostiles . | . . . . Parts Melted . | . . . . Heat Transferred . | . . . . Parts Sabotaged . | . . . . Parts Stolen . | . . . . Parts Stripped . | . . . . Power Chain Reactions . | . . . . Alert | -11 -10 -10 -10 ------- Run | Yrd Mat Min Sub Maximum Alert Level 1 | . 1 1 . Low Security (%) 60 | 100 32 92 . Level 1 39 | . 67 7 . Level 2 . | . . . . Level 3 . | . . . . Level 4 . | . . . . Level 5 . | . . . . High Security . | . . . . Max Security . | . . . . Peak Influence 264 | 15 264 227 . Initial 68 | . . 68 . Average 156 | 2 204 114 . Influence Increases 1145 | 15 640 490 . Destroy 0b10 Robot/C 580 | . 340 240 . Destroy 0b10 Robot/NC 95 | 15 35 45 . Destroy Leader 114 | . 74 40 . Successful Hack 38 | . 38 . . Select Force Hacks 60 | . 60 . . Destroy Structure 108 | . 63 45 . Partial Spotted 30 | . . 30 . Lose Combat Pursuer 120 | . 30 90 . Influence Decreases 1145 | 15 464 457 209 Entered New Map 217 | . . 108 109 Time Decay 928 | 15 464 349 100 Squads Dispatched 4 | . 4 . . Investigation 2 | . 2 . . Extermination . | . . . . Reinforcement 2 | . 2 . . Assault . | . . . . Garrison . | . . . . Intercept . | . . . . Searches Triggered . | . . . . Construction Impeded . | . . . . Haulers Reinforced . | . . . . Active Scanning Responses . | . . . . Cargo Convoy Interrupts . | . . . . Stealth | -11 -10 -10 -10 --------- Run | Yrd Mat Min Sub Distress Signals 3 | . 3 . . Communications Jammed . | . . . . Distress Signals . | . . . . Times Spotted 58 | . 33 16 9 Peak Tracking Total 5 | . 4 5 3 Tactical Retreats 4 | . 1 3 . Traps | -11 -10 -10 -10 ------- Run | Yrd Mat Min Sub Traps Triggered . | . . . . Indirectly . | . . . . Trap Hack Attempts . | . . . . Triggered . | . . . . Disarmed . | . . . . Reprogrammed . | . . . . Reused . | . . . . Traps Extracted . | . . . . Installed . | . . . . Triggered . | . . . . Machines | -11 -10 -10 -10 ---------- Run | Yrd Mat Min Sub Machines Disabled . | . . . . Max in Single Turn . | . . . . Machines Repaired . | . . . . Machines Dismantled . | . . . . Machines Sabotaged . | . . . . Overloaded Fab Kills . | . . . . Hacking | -11 -10 -10 -10 --------- Run | Yrd Mat Min Sub Machines Accessed 11 | . 9 . 2 Terminals 6 | . 6 . . Fabricators . | . . . . Repair Stations 1 | . 1 . . Recycling Units 2 | . 2 . . Scanalyzers . | . . . . Garrison Access . | . . . . Total Hacks 34 | . 29 . 5 Successful 25 | . 20 . 5 Failed 9 | . 9 . . Catastrophic 2 | . 2 . . Database Lockouts . | . . . . Manual 20 | . 20 . . Terminals 17 | . 17 . . Fabricators . | . . . . Repair Stations 4 | . 4 . . Recycling Units 8 | . 8 . . Scanalyzers . | . . . . Garrison Access . | . . . . Terminal Hacks 10 | . 5 . 5 Record 4 | . . . 4 Robot Schematic 1 | . 1 . . Robot Analysis 2 | . 2 . . Prototype ID Bank 1 | . 1 . . Open Door 1 | . . . 1 Locate Traps 1 | . 1 . . Fabricator Hacks . | . . . . Repair Station Hacks 4 | . 4 . . Scan Component 2 | . 2 . . Repair 2 | . 2 . . Recycling Unit Hacks 2 | . 2 . . Retrieve Components 2 | . 2 . . Scanalyzer . | . . . . Garrison Access Hacks . | . . . . Unauthorized Hacks 9 | . 9 . . Terminals 5 | . 5 . . Skim 5 | . 5 . . Fabricators . | . . . . Repair Stations . | . . . . Recycling Units 4 | . 4 . . Reject 2 | . 2 . . Tunnel 2 | . 2 . . Scanalyzers . | . . . . Garrison Access . | . . . . Data Cores Recovered . | . . . . Used . | . . . . Hacking Detections 7 | . 7 . . Full Trace Events . | . . . . Feedback Events . | . . . . Feedback Blocked . | . . . . Robot Schematics Acquired 1 | . 1 . . Robots Built . | . . . . Authchips . | . . . . Time . | . . . . Total Robot Build Rating . | . . . . Part Schematics Acquired . | . . . . Parts Built . | . . . . Authchips . | . . . . Time . | . . . . Total Part Build Rating . | . . . . Part Studies Acquired . | . . . . Parts Repaired 2 | . 2 . . Time 52 | . 52 . . Parts Recycled . | . . . . Recycled Matter . | . . . . Retrieved Matter . | . . . . Retrieved Components 12 | . 12 . . Parts Scanalyzed . | . . . . Part Schematics Acquired . | . . . . Parts Damaged . | . . . . Bothacking | -11 -10 -10 -10 ------------ Run | Yrd Mat Min Sub Used RIF Installer . | . . . . Robots Hacked . | . . . . Non-combat . | . . . . Combat . | . . . . Robot Hacks Applied . | . . . . Relay Couplers Released . | . . . . Fabnet Peak Effective % . | . . . . Robots Rewired . | . . . . Allies Hacked . | . . . . Hacks Repelled . | . . . . Allies | -11 -10 -10 -10 -------- Run | Yrd Mat Min Sub Total Allies . | . . . . Largest Group . | . . . . Highest-Rated Group . | . . . . Highest-Rated Ally . | . . . . Total Orders . | . . . . Ally Attacks . | . . . . Total Damage . | . . . . Kills . | . . . . Allies Corrupted . | . . . . Allies Melted . | . . . . Intel | -11 -10 -10 -10 ------- Run | Yrd Mat Min Sub Active Infowar (turns) 313 | 21 292 . . Terrain 284 | 18 266 . . Seismic 123 | 21 102 . . Robot Analysis Total 2 | . 2 . . Derelict Logs Recovered 2 | . . 1 1 Drone Launches . | . . . . Drone Recoveries . | . . . . Exploration | -11 -10 -10 -10 ------------- Run | Yrd Mat Min Sub Turns Passed 3123 | 125 1187 873 938 Spaces Moved 4427 | 60 1667 1372 1328 Core 239 | 57 76 . 106 Treads 3 | 3 . . . Legs . | . . . . Wheels . | . . . . Hover . | . . . . Flight 4185 | . 1591 1372 1222 Fastest Speed 37 | 50 37 37 37 Average Speed 45 | 74 37 37 62 Slowest Speed 160 | 160 117 117 117 Overloaded Moves . | . . . . Propulsion Burnouts . | . . . . Robots Hopped 21 | . 14 7 . Potential Cave-ins . | . . . . Cave-ins Triggered . | . . . . Exploration Rate (%) 67 | 4 96 99 69 Regions Visited 3 Branch Regions 2 Pre-discovered Areas 2 | . 2 . . Known Exits Taken 1 | . . 1 . Unknown Exits Taken 2 | 1 1 . . Scrap Searched 12 | . . 1 11 Spaces Dug 66 | . 15 51 . Terrain Destroyed 201 | . 69 73 59 Melee . | . . . . Projectile 10 | . 8 2 . AOE 191 | . 61 71 59 Terrain Rammed . | . . . . Walls Destroyed . | . . . . Machines Disabled . | . . . . Actions | -11 -10 -10 -10 --------- Run | Yrd Mat Min Sub Total 5224 | 107 2104 1627 1386 Wait 534 | . 336 194 4 Move 4382 | 59 1638 1357 1328 Hop 21 | . 14 7 . Pick Up 22 | 4 12 2 4 Fast Attach 9 | 6 3 . . Attach 8 | . 6 . 2 Detach 6 | 1 5 . . Swap 40 | . 18 11 11 Drop 21 | . 11 5 5 Fire 178 | 37 61 51 29 Melee 3 | . . . 3 Ram . | . . . . Kick . | . . . . Crush . | . . . . Escape Stasis . | . . . . Rewire . | . . . . Trap . | . . . . Miscellaneous . | . . . . Route ------- -11/Scrapyard -10/Materials (discovered 6 exits: *Mat x3 / [*Min x2] / Sub) -10/Mines (discovered 3 exits: *Mat x2 / *Sub) -10/Subcaves (discovered 3 exits: [*Mat] / Rec / [*Scr]) History --------- Turn | Location | Event 11 | -11/Scrapyard | Discovered new exit (range 15) 126 | -11/Scrapyard | Entered Materials 167 | -10/Materials | Discovered new exit (range 15) 212 | -10/Materials | Discovered new exit (range 11) 413 | -10/Materials | Discovered new exit (range 12) 439 | -10/Materials | Build established: Scavenger-Mutant 535 | -10/Materials | Discovered new exit (range 12) 674 | -10/Materials | Learned location of 2 exits from Mines 684 | -10/Materials | Repaired Flight Unit 711 | -10/Materials | Repaired Flight Unit 742 | -10/Materials | Learned 2 Storage zone layouts 798 | -10/Materials | Identified exit to Subcaves 798 | -10/Materials | Identified exit to Materials 826 | -10/Materials | Derelicts attacked the area 846 | -10/Materials | Learned location of 2 exits from Materials 942 | -10/Materials | Learned Storage security intel 986 | -10/Materials | Learned 2 Mines zone layouts 1042 | -10/Materials | Learned Storage stockpile data 1313 | -10/Materials | Entered Mines 1320 | -10/Mines | Received a Rocket Launcher from a helpful Derelict 1332 | -10/Mines | Excavation squad dispatched 1332 | -10/Mines | A large section of the Mines collapsed 2186 | -10/Mines | Entered Subcaves 2187 | -10/Subcaves | Approached by a straggling Scientist 2194 | -10/Subcaves | Shifting Twisted Machinery released Shrapnel Trap 2194 | -10/Subcaves | Learned Materials stockpile data 2252 | -10/Subcaves | Disturbed a concealed Subdweller 2290 | -10/Subcaves | A swath of the cavern ceiling suddenly collapsed 2315 | -10/Subcaves | Ambushed by angry Subdweller bent on revenge 2465 | -10/Subcaves | Shifting Twisted Machinery released Mak. Leg 2493 | -10/Subcaves | Discovered new exit (range 13) 2808 | -10/Subcaves | Visited Clippyterm 2812 | -10/Subcaves | Identified exit to Recycling 2812 | -10/Subcaves | Learned Factory emergency access door positions 2826 | -10/Subcaves | Build established: Mutant 2987 | -10/Subcaves | Disturbed a concealed Subdweller 3106 | -10/Subcaves | A Subdweller sparked back to life 3109 | -10/Subcaves | Core integrity fell below 50% 3120 | -10/Subcaves | Core integrity fell below 20% 3124 | -10/Subcaves | Destroyed by TB-GDZ(R) with Subdweller Shrapnel Launcher Last Messages --------------- 02977_ Searching scrap... 02977_ Found Flamer. 02977_ Found 61 Matter. 02983_ Searching scrap... 02983_ Found Sub. Laser. 02983_ Found Flamer. 02983_ Found 41 Matter. 02987_ KA-EFJ(R) angrily emerges from the Twisted Machinery. 02987_ KA-EFJ(R) knocked back. 02993_ KA-EFJ(R) destroyed. 02996_ Acquired 20 matter. 02996_ Acquired 4 matter. 03106_ TB-GDZ(R) creaks and sparks as it begins to move. 03106_ Flight Unit destroyed. 03111_ HE-YC1(R): "ARGHSUB!" 03114_ PH-JSI(R): "ARGHSUB!" 03117_ Lgt. Cannon destroyed. 03121_ PH-JSI(R) destroyed. 03121_ HE-YC1(R) destroyed. 03123_ Destroyed Scrap Shield. Map ----- +----------------------------------------------------+ | ###### #?????????????????## # ##??????????? | | #?## #?????????????????# ## #??????????? | | #?# #?????????????????## #??????????? | | #?# #???????#######????# #??????????? | | ### #????????#"""""#?#### ##?????????? | | ## #?????????#""X""#?# #?????????? | | ####??????#" "### #?????????? | | #??????### #### ##?????????? | | #??####?## ####### #??????????? | | ####% ### #???###### #??????????? | | ### ###????### #??????????? | | ??## ### #????# ##??????????? | | ???# ##??## ##???????????? | | ???# ## #?## ##????????????? | | ???##### #### #?# ##?????????????? | | ???????#####??# #?## ##?????????????? | | ??????????????## ## #??# #?????????????? | | ???????????????#### ##??# #?????????????? | | ?????????????#### ####### ##????????????? | | ?????????????# ## ## ####?????????? | | ?????????????# ## #?????????? | | ?????????????## ##?????????? | | ??????????????### #??????????? | | ????????????????# ###??????????? | | ????????????????# # ## ##????????????? | | ????????????????##### @ #####?????????????? | | ????????????????????# #????????????????? | | ???????????????????# ###??????????????? | | ???????????????????## #??????????????? | | ????????????????????# ##?????????????? | | ????????????????????##; #?????????????? | | ?????????????????????## #?????????????? | | ??????????????????????### ###?????????????? | | ????????????????????????## #???????????????? | | ?????????????????????????# & ???????????????? | | ?????????????????????????? %]% ??????????????? | | ?????????????????????????? ! ?????????????? | | ?????????????????????????? ??????????????? | | ?????????????????????????? R ????????????????? | | ?????????????????????????? #?????????????????? | | ?????????????????????????? ?????????????????? | | ???????????????????????????#### ?????????????????? | | ???????????????????????????????"?????????????????? | | ??????????????????????????????? ?????????????????? | | ?????????????????????????????????????????????????? | | ?????????????????????????????????????????????????? | | ?????????????????????????????????????????????????? | | ?????????????????????????????????????????????????? | | ?????????????????????????????????????????????????? | | ?????????????????????????????????????????????????? | +----------------------------------------------------+ Best States ------------- Heat Dissipation 25 Energy Generation 10 Energy Capacity 125 Matter Stores 300 Matter Capacity 300 Sight Range 16 Terrain Scan Range 16 Terrain Scan Density 10 Additional Mass Support 6 Armor Coverage 150 Evasion (%) 62 Recoil Reduction 2 Item Schematics ----------------- None Robot Schematics ------------------ M-13 Machinist | -10/Materials | Hacked Fabricated ------------ Nothing Repaired ---------- Flight Unit | 45% | -10/Materials Flight Unit | 45% | -10/Materials Studied --------- None Alien Tech Used ----------------- None Achievements -------------- None Challenges ------------ None Game ------ Seed ConstructDecoyMembrane Manual? 0 Play Time 00:31:21 Cumulative 1428.2 hours Start 2025.12.13 @ 14:44:16 End 2025.12.13 @ 15:16:40 Sessions 1 Manual Loads 0 Difficulty Rogue Special Mode None Game No. 649 Rogue 649 Adventurer 0 Explorer 0 Win Type - Total 28 Types 13/5/3/0/1/1/2/2/0/1 Lore% 93 Gallery% 90 Achievement% 70 Wizard Run 0 Options --------- Layout 0 ASCII 0 Keyboard 0 Movement Numpad Keybinds 0 Fullscreen 2 Font 24/Smallcaps Map View 76x50 Zoom Use 0% Tactical HUD 1 Map Filters NONE Filters SHIFT_HUE(315) Steam 1 RUN: adfc3bde-d556-4ddc-9f63-6cc2c1363e25